Workbook

Sheet Model Fit
A1: Linear Slopes | E1: Curvilinear Slope Factor | J1: Constant | K1: 1.4 | P1: Strength | R1: Mental
A2: Strength Growth | C2: Strength Decline | E2: Mental Growth | G2: Mental Decline | J2: Equalizer | K2: 1 | P2: Transition | R2: Transition
A3: Linear | B3: Curve | C3: Linear | D3: Curve | E3: Linear | F3: Curve | G3: Linear | H3: Curve | M3: Strength | O3: Mental | P3: Age | Q3: Value | R3: Age | S3: Value
O4: Capacity | P4: 7 | Q4: 1.05 | R4: 7 | S4: 1
J5: Birth Intercept | M5: 0.3 | O5: 0.2 | P5: 8 | Q5: 1.06 | R5: 8 | S5: 1
J6: Transition Age | M6: 25 | O6: 30 | P6: 9 | Q6: 1.04 | R6: 9 | S6: 1
J7: Growth Factor | L7: 6203 | M7: =1-L7/10000 -> 0.3797 | N7: 8516 | O7: =1-N7/10000 -> 0.1484 | P7: 10 | Q7: 1 | R7: 10 | S7: 1
J8: Curve | L8: 603 | M8: =-(L8-500)/100000 -> -0.00103 | N8: 589 | O8: =-(N8-500)/100000 -> -0.00089 | P8: 11 | Q8: 0.94 | R8: 11 | S8: 1
J9: Decline Factor | L9: 9010 | M9: =1-L9/10000 -> 0.099 | N9: 9690 | O9: =1-N9/10000 -> 0.031 | P9: 12 | Q9: 0.92 | R9: 12 | S9: 1
J10: Curve | L10: 5031 | M10: =-(L10-5000)/100000 -> -0.00031 | N10: 4981 | O10: =-(N10-5000)/100000 -> 0.00019 | P10: 13 | Q10: 0.9 | R10: 13 | S10: 1
L11: New | M11: Old | N11: Change | P11: 14 | Q11: 0.9 | R11: 14 | S11: 1
J12: R Squared | K12: Propensity | L12: =1-W123/V123 -> 0.9901568468 | M12: 0.9901568468 | N12: 0.0003114404288 | P12: 15 | Q12: 0.9 | R12: 15 | S12: 1
J13: R Squared | K13: Crime | L13: =1-Y123/X123 -> 0.9950343475 | M13: 0.9950343475 | N13: -8.062650261e-05 | P13: 16 | Q13: 0.74 | R13: 16 | S13: 1
P14: 17 | Q14: 0.6 | R14: 17 | S14: 1
P15: 18 | Q15: 0.43 | R15: 18 | S15: 1
P16: 19 | Q16: 0.3 | R16: 19 | S16: 1.1
P17: 20 | Q17: 0.2 | R17: 20 | S17: 1
P18: 21 | Q18: 0.1 | R18: 21 | S18: 0.9
P19: 22 | Q19: 0.05 | R19: 22 | S19: 0.6
P20: 23 | Q20: 0.025 | R20: 23 | S20: 0.45
P21: 24 | Q21: 0.1 | R21: 24 | S21: 0.4
P22: 25 | Q22: 0 | R22: 25 | S22: 0.35
R23: 26 | S23: 0.1
R24: 27 | S24: 0.1
A25: Note: If you want to make changes to spreadsheet without updating changes, | R25: 28 | S25: 0.05
A26: Click this Track Changes button | R26: 29 | S26: 0.025
R27: 30 | S27: 0
C28: Yes
U30: One | V30: Propensity | X30: Crime | Y30: Crime
B32: Actual | C32: Age | E32: Propensity
B33: Male | C33: Crime | E33: Modified | T33: Mental | U33: One -
B34: Age | C34: Curve | E34: Probits = | H34: Mental | I34: Mental | L34: Z-Scores = | M34: Projected | N34: Actual | S34: Negative | T34: Capacity | U34: Adjusted
B35: Crime | C35: Times | D35: Actual | E35: Z Scores | F35: Strength | G35: Strength | H35: Capacity | I35: Capacity | J35: Projected | K35: Change in | L35: Probits | M35: Crime | N35: Crime | P35: Mental | S35: Mental | T35: Times | U35: Mental | V35: Y - Mean | W35: Y-Y' | X35: Y - Mean | Y35: Y-Y'
A36: Age | B36: Curve | C36: Constant | D36: Z-Scores | E36: Plus 5.1 | F36: Multiplier | G36: Calculated | H36: Multiplier | I36: Calculated | J36: Propensity | K36: Propensity | L36: Minus 5.1 | M36: Rate | N36: Rate | O36: Strength | P36: Capacity | S36: Capacity | T36: 1.4 | U36: Capacity | V36: Squared | W36: Squared | X36: Squared | Y36: Squared
A37: =0 -> 0 | F37: 1 | G37: =M5 -> 0.3 | H37: 1 | I37: =O5 -> 0.2 | J37: =(G37-I37)*K$2 -> 0.1 | O37: =G37/10 -> 0.03 | Q37: =I37/10 -> 0.02 | S37: =-Q37 -> -0.02 | T37: =Q37*T$36 -> 0.028 | U37: =1-T37 -> 0.972
A38: =A37+1 -> 1 | B38: 8.877973343e-06 | C38: =B38*$K$1 -> 1.242916268e-05 | D38: =NORMSINV(C38) -> -4.216082135 | E38: 0.2222222 | F38: 1 | G38: =G37+F38*($M$7+$M$8*(A38)) -> 0.67867 | H38: 1 | I38: =I37+H38*($O$7+$O$8*(A38)) -> 0.34751 | J38: 0.33116 | L38: =J38-5.1 -> -4.76884 | M38: =NORMSDIST(L38) -> 9.264487258e-07 | N38: =C38 -> 1.242916268e-05 | O38: =G38/10 -> 0.067867 | Q38: 0.034751 | S38: -0.034751 | T38: 0.0486514 | U38: =1-T38 -> 0.9513486 | V38: =(E38-E$123)*(E38-E$123) -> 5.013052576 | W38: =(E38-J38)*(E38-J38) -> 0.01186744427 | X38: =(N38-N$123)*(N38-N$123) -> 0.0002773636268 | Y38: =(N38-M38)*(N38-M38) -> 1.323124283e-10
A39: =A38+1 -> 2 | B39: 3.528650105e-06 | C39: =B39*$K$1 -> 4.940110147e-06 | D39: =NORMSINV(C39) -> -4.419778314 | E39: 0.4444444 | F39: 1 | G39: =G38+F39*($M$7+$M$8*(A39)) -> 1.05631 | H39: 1 | I39: =I38+H39*($O$7+$O$8*(A39)) -> 0.49413 | J39: 0.56218 | K39: =J39-J38 -> 0.23102 | L39: =J39-5.1 -> -4.53782 | M39: =NORMSDIST(L39) -> 2.841937121e-06 | N39: 4.940110147e-06 | O39: 0.105631 | Q39: 0.049413 | S39: -0.049413 | T39: 0.0691782 | U39: 0.9308218 | V39: 4.067331061 | W39: =(E39-J39)*(E39-J39) -> 0.01386167151 | X39: 0.0002776131318 | Y39: 4.402330047e-12
A40: 3 | B40: 6.368619785e-06 | C40: 8.916067698e-06 | D40: -4.290437642 | E40: =D40+5 -> 0.7095623581 | F40: 1 | G40: 1.43292 | H40: 1 | I40: 0.63986 | J40: 0.79306 | K40: =J40-J39 -> 0.23088 | L40: -4.30694 | M40: 8.276424292e-06 | N40: 8.916067698e-06 | O40: 0.143292 | Q40: 0.063986 | S40: -0.063986 | T40: 0.0895804 | U40: 0.9104196 | V40: 3.06825867 | W40: 0.006971856198 | X40: 0.000277480655 | Y40: 4.09143687e-13
A41: 4 | B41: 1.751098696e-05 | C41: 2.451538174e-05 | D41: -4.060199692 | E41: 0.9398003076 | F41: 1 | G41: 1.8085 | H41: 1 | I41: 0.7847 | J41: 1.0238 | K41: 0.23074 | L41: -4.0762 | M41: 2.288882465e-05 | N41: 2.451538174e-05 | O41: 0.18085 | Q41: 0.07847 | S41: -0.07847 | T41: 0.109858 | U41: 0.890142 | V41: 2.31467808 | W41: 0.007055948325 | X41: 0.0002769611994 | Y41: 2.645687965e-12
A42: 5 | B42: 4.67036171e-05 | C42: 6.538506394e-05 | D42: -3.82500369 | E42: 1.17499631 | F42: 1 | G42: 2.18305 | H42: 1 | I42: 0.92865 | J42: 1.2544 | K42: 0.2306 | L42: -3.8456 | M42: 6.012890317e-05 | N42: 6.538506394e-05 | O42: 0.218305 | Q42: 0.092865 | S42: -0.092865 | T42: 0.130011 | U42: 0.869989 | V42: 1.654337732 | W42: 0.006304945966 | X42: 0.0002756025509 | Y42: 2.762722601e-11
A43: 6 | B43: 0.0001416829952 | C43: 0.0001983561933 | D43: -3.542261233 | E43: 1.457738767 | F43: 1 | G43: 2.55657 | H43: 1 | I43: 1.07171 | J43: 1.48486 | K43: 0.23046 | L43: -3.61514 | M43: 0.0001500926775 | N43: 0.0001983561933 | O43: 0.255657 | Q43: 0.107171 | S43: -0.107171 | T43: 0.1500394 | U43: 0.8499606 | V43: 1.006948334 | W43: 0.0007355612895 | X43: 0.0002712052498 | Y43: 2.32936695e-09
A44: 7 | B44: 0.0004152864657 | C44: 0.000581401052 | D44: -3.24785084 | E44: 1.75214916 | F44: =Q4 -> 1.05 | G44: 2.9476845 | H44: =S4 -> 1 | I44: 1.21388 | J44: 1.7338045 | K44: 0.2489445 | L44: -3.3661955 | M44: 0.0003810633668 | N44: 0.000581401052 | O44: 0.29476845 | Q44: 0.121388 | S44: -0.121388 | T44: 0.1699432 | U44: 0.8300568 | V44: 0.5027629074 | W44: 0.0003365265351 | X44: 0.0002587357699 | Y44: 4.013518812e-08
A45: 8 | B45: 0.0008759642403 | C45: 0.001226349936 | D45: -3.029116616 | E45: 1.970883384 | F45: 1.06 | G45: 3.3414321 | H45: 1 | I45: 1.35516 | J45: 1.9862721 | K45: 0.2524676 | L45: -3.1137279 | M45: 0.0009236988747 | N45: 0.001226349936 | O45: 0.33414321 | Q45: 0.135516 | S45: -0.135516 | T45: 0.1897224 | U45: 0.8102776 | V45: 0.2404171698 | W45: 0.0002368125817 | X45: 0.0002384033807 | Y45: 9.159766517e-08
A46: 9 | B46: 0.001591856917 | C46: 0.002228599684 | D46: -2.84385023 | E46: 2.15614977 | F46: 1.04 | G46: 3.7266793 | H46: 1 | I46: 1.49555 | J46: 2.2311293 | K46: 0.2448572 | L46: -2.8688707 | M46: 0.002059700806 | N46: 0.002228599684 | O46: 0.37266793 | Q46: 0.149555 | S46: -0.149555 | T46: 0.209377 | U46: 0.790623 | V46: 0.0930598649 | W46: 0.005621929979 | X46: 0.0002084577782 | Y46: 2.852683123e-08
A47: 10 | B47: 0.003069457504 | C47: 0.004297240506 | D47: -2.627777105 | E47: 2.372222895 | F47: 1 | G47: 4.0960793 | H47: 1 | I47: 1.63505 | J47: 2.4610293 | K47: 0.2299 | L47: -2.6389707 | M47: 0.00415790839 | N47: 0.004297240506 | O47: 0.40960793 | Q47: 0.163505 | S47: -0.163505 | T47: 0.228907 | U47: 0.771093 | V47: 0.007918156688 | W47: 0.007886577584 | X47: 0.0001530027036 | Y47: 1.941343848e-08
A48: 11 | B48: 0.005601072333 | C48: 0.007841501267 | D48: -2.416210253 | E48: 2.583789747 | F48: 0.94 | G48: 4.4423471 | H48: 1 | I48: 1.77366 | J48: 2.6686871 | K48: 0.2076578 | L48: -2.4313129 | M48: 0.007522108046 | N48: 0.007841501267 | O48: 0.44423471 | Q48: 0.177366 | S48: -0.177366 | T48: 0.2483124 | U48: 0.7516876 | V48: 0.01502654952 | W48: 0.007207560543 | X48: 7.788354434e-05 | Y48: 1.020120293e-07
A49: 12 | B49: 0.01072677167 | C49: 0.01501748034 | D49: -2.169629026 | E49: 2.830370974 | F49: 0.92 | G49: 4.7802999 | H49: 1 | I49: 1.91138 | J49: 2.8689199 | K49: 0.2002328 | L49: -2.2310801 | M49: 0.01283791184 | N49: 0.01501748034 | O49: 0.47802999 | Q49: 0.191138 | S49: -0.191138 | T49: 0.2675932 | U49: 0.7324068 | V49: 0.1362820991 | W49: 0.001486019672 | X49: 2.719815529e-06 | Y49: 4.750518882e-06
A50: 13 | B50: 0.01860041365 | C50: 0.0260405791 | D50: -1.942462312 | E50: 3.057537688 | F50: 0.9 | G50: 5.1099789 | H50: 1 | I50: 2.04821 | J50: 3.0617689 | K50: 0.192849 | L50: -2.0382311 | M50: 0.02076341333 | N50: 0.0260405791 | O50: 0.51099789 | Q50: 0.204821 | S50: -0.204821 | T50: 0.2867494 | U50: 0.7132506 | V50: 0.3556103855 | W50: 1.790315211e-05 | X50: 8.787023439e-05 | Y50: 2.784847863e-05
A51: 14 | B51: 0.02760302364 | C51: 0.03864423309 | D51: -1.766640426 | E51: 3.233359574 | F51: 0.9 | G51: 5.4387309 | H51: 1 | I51: 2.18415 | J51: 3.2545809 | K51: 0.192812 | L51: -1.8454191 | M51: 0.03248829841 | N51: 0.03864423309 | O51: 0.54387309 | Q51: 0.218415 | S51: -0.218415 | T51: 0.305781 | U51: 0.694219 | V51: 0.5962197212 | W51: 0.0004503446827 | X51: 0.000483013426 | Y51: 3.789553178e-05
A52: 15 | B52: 0.03600582557 | C52: 0.0504081558 | D52: -1.640908975 | E52: 3.359091025 | F52: 0.9 | G52: 5.7665559 | H52: 1 | I52: 2.3192 | J52: 3.4473559 | K52: 0.192775 | L52: -1.6526441 | M52: 0.04920165865 | N52: 0.0504081558 | O52: 0.57665559 | Q52: 0.23192 | S52: -0.23192 | T52: 0.324688 | U52: 0.675312 | V52: 0.8061958655 | W52: 0.00779068824 | X52: 0.001138488089 | Y52: 1.455635388e-06
A53: 16 | B53: 0.04434751508 | C53: 0.06208652112 | D53: -1.537491307 | E53: 3.462508693 | F53: 0.74 | G53: 6.0353387 | H53: 1 | I53: 2.45336 | J53: 3.5819787 | K53: 0.1346228 | L53: -1.5180213 | M53: 0.06450451458 | N53: 0.06208652112 | O53: 0.60353387 | Q53: 0.245336 | S53: -0.245336 | T53: 0.3434704 | U53: 0.6565296 | V53: 1.002605241 | W53: 0.01427308254 | X53: 0.002062963178 | Y53: 5.846692371e-06
A54: 17 | B54: 0.05234460593 | C54: 0.0732824483 | D54: -1.451772414 | E54: 3.548227586 | F54: 0.6 | G54: 6.2526527 | H54: 1 | I54: 2.58663 | J54: 3.6660227 | K54: 0.084044 | L54: -1.4339773 | M54: 0.07578937043 | N54: 0.0732824483 | O54: 0.62526527 | Q54: 0.258663 | S54: -0.258663 | T54: 0.3621282 | U54: 0.6378718 | V54: 1.181613928 | W54: 0.01387568895 | X54: 0.00320534673 | Y54: 6.284658558e-06
A55: 18 | B55: 0.06042670785 | C55: 0.08459739099 | D55: -1.374795731 | E55: 3.625204269 | F55: 0.43 | G55: 6.4079515 | H55: 1 | I55: 2.71901 | J55: 3.6889415 | K55: 0.0229188 | L55: -1.4110585 | M55: 0.07911368269 | N55: 0.08459739099 | O55: 0.64079515 | Q55: 0.271901 | S55: -0.271901 | T55: 0.3806614 | U55: 0.6193386 | V55: 1.354889829 | W55: 0.004062434621 | X55: 0.004614583307 | Y55: 3.007105677e-05
A56: 19 | B56: 0.05301834977 | C56: 0.07422568968 | D56: -1.445023164 | E56: 3.554976836 | F56: 0.3 | G56: 6.5159905 | H56: 1.1 | I56: 2.863649 | J56: 3.6523415 | K56: -0.0366 | L56: -1.4476585 | M56: 0.07385629083 | N56: 0.07422568968 | O56: 0.65159905 | Q56: 0.2863649 | S56: -0.2863649 | T56: 0.40091086 | U56: 0.59908914 | V56: 1.19633263 | W56: 0.00947987775 | X56: 0.00331304113 | Y56: 1.36455506e-07
A57: 20 | B57: 0.04563305836 | C57: 0.0638862817 | D57: -1.522944611 | E57: 3.477055389 | F57: 0.2 | G57: 6.5878105 | H57: 1 | I57: 2.994249 | J57: 3.5935615 | K57: -0.05878 | L57: -1.5064385 | M57: 0.06597732181 | N57: 0.0638862817 | O57: 0.65878105 | Q57: 0.2994249 | S57: -0.2994249 | T57: 0.41919486 | U57: 0.58080514 | V57: 1.031948112 | W57: 0.01357367398 | X57: 0.002229692044 | Y57: 4.37244873e-06
A58: 21 | B58: 0.04114166754 | C58: 0.05759833455 | D58: -1.575259019 | E58: 3.424740981 | F58: 0.1 | G58: 6.6236175 | H58: 0.9 | I58: 3.110988 | J58: 3.5126295 | K58: -0.080932 | L58: -1.5873705 | M58: 0.05621437827 | N58: 0.05759833455 | O58: 0.66236175 | Q58: 0.3110988 | S58: -0.3110988 | T58: 0.43553832 | U58: 0.56446168 | V58: 0.9283978864 | W58: 0.007724391833 | X58: 0.001675401436 | Y58: 1.915334997e-06
A59: 22 | B59: 0.03720213726 | C59: 0.05208299216 | D59: -1.624983924 | E59: 3.375016076 | F59: 0.05 | G59: 6.6414695 | H59: 0.6 | I59: 3.18828 | J59: 3.4531895 | K59: -0.05944 | L59: -1.6468105 | M59: 0.04979850124 | N59: 0.05208299216 | O59: 0.66414695 | Q59: 0.318828 | S59: -0.318828 | T59: 0.4463592 | U59: 0.5536408 | V59: 0.8350471741 | W59: 0.006111084205 | X59: 0.001254316111 | Y59: 5.218898766e-06
A60: 23 | B60: 0.03403383315 | C60: 0.04764736642 | D60: -1.668105766 | E60: 3.331894234 | F60: 0.025 | G60: 6.65036975 | H60: 0.45 | I60: 3.2458485 | J60: 3.40452125 | K60: -0.04866825 | L60: -1.69547875 | M60: 0.04499231903 | N60: 0.04764736642 | O60: 0.665036975 | Q60: 0.32458485 | S60: -0.32458485 | T60: 0.45441879 | U60: 0.54558121 | V60: 0.7580963997 | W60: 0.005274683405 | X60: 0.0009598037569 | Y60: 7.049276606e-06
A61: 24 | B61: 0.03103439562 | C61: 0.04344815387 | D61: -1.712001957 | E61: 3.287998043 | F61: 0.1 | G61: 6.68586775 | H61: 0.4 | I61: 3.2966645 | J61: 3.38920325 | K61: -0.015318 | L61: -1.71079675 | M61: 0.04355931988 | N61: 0.04344815387 | O61: 0.668586775 | Q61: 0.32966645 | S61: -0.32966645 | T61: 0.46153303 | U61: 0.53846697 | V61: 0.6835835607 | W61: 0.01024249401 | X61: 0.0007172480567 | Y61: 1.235788179e-08
A62: 25 | B62: 0.02923805417 | C62: 0.04093327584 | D62: -1.739957097 | E62: 3.260042903 | F62: 0 | G62: 6.68586775 | H62: 0.35 | I62: 3.340817 | J62: 3.34505075 | K62: -0.0441525 | L62: -1.75494925 | M62: 0.03963399445 | N62: 0.04093327584 | O62: 0.668586775 | Q62: 0.3340817 | S62: -0.3340817 | T62: 0.46771438 | U62: 0.53228562 | V62: 0.6381389281 | W62: 0.007226334043 | X62: 0.0005888683207 | Y62: 1.688132136e-06
A63: 26 | B63: 0.02713505721 | C63: 0.0379890801 | D63: -1.77451405 | E63: 3.22548595 | F63: 0.05 | G63: =G62-F63*($M$9+(A62+$M$6)*M$10) -> 6.68169275 | H63: 0.1 | I63: 3.353343 | J63: 3.32834975 | K63: -0.016701 | L63: -1.77165025 | M63: 0.0382263164 | N63: 0.0379890801 | O63: 0.668169275 | Q63: 0.3353343 | S63: -0.3353343 | T63: 0.46946802 | U63: 0.53053198 | V63: 0.5841224362 | W63: 0.01058096132 | X63: 0.0004546453146 | Y63: 5.628106139e-08
A64: 27 | B64: 0.02549344944 | C64: 0.03569082922 | D64: -1.803041748 | E64: 3.196958252 | F64: 0.1 | G64: 6.67337375 | H64: 0.1 | I64: 3.36578 | J64: 3.30759375 | K64: -0.020756 | L64: -1.79240625 | M64: 0.03653395719 | N64: 0.03569082922 | O64: 0.667337375 | Q64: 0.336578 | S64: -0.336578 | T64: 0.4712092 | U64: 0.5287908 | V64: 0.5413300229 | W64: 0.01224021341 | X64: 0.0003619187608 | Y64: 7.108647697e-07
A65: 28 | B65: 0.02456680965 | C65: 0.03439353351 | D65: -1.819815759 | E65: 3.180184241 | F65: 0.15 | G65: 6.66094175 | H65: 0.05 | I65: 3.371954 | J65: 3.28898775 | K65: -0.018606 | L65: -1.81101225 | M65: 0.03506947772 | N65: 0.03439353351 | O65: 0.666094175 | Q65: 0.3371954 | S65: -0.3371954 | T65: 0.47207356 | U65: 0.52792644 | V65: 0.5169283883 | W65: 0.01183820358 | X65: 0.000314241808 | Y65: 4.569005825e-07
A66: 29 | B66: 0.02251501296 | C66: 0.03152101815 | D66: -1.858894906 | E66: 3.141105094 | F66: 0.2 | G66: 6.64442775 | H66: 0.025 | I66: 3.37501875 | J66: 3.269409 | K66: -0.01957875 | L66: -1.830591 | M66: 0.03358080645 | N66: 0.03152101815 | O66: 0.664442775 | Q66: 0.337501875 | S66: -0.337501875 | T66: 0.472502625 | U66: 0.527497375 | V66: 0.4622615273 | W66: 0.01646189229 | X66: 0.000220651758 | Y66: 4.242727831e-06
A67: 30 | B67: 0.02208662497 | C67: 0.03092127496 | D67: -1.867422932 | E67: 3.132577068 | F67: 0.25 | G67: 6.62386275 | H67: 0 | I67: 3.37501875 | J67: 3.248844 | K67: -0.020565 | L67: -1.851156 | M67: 0.03207355684 | N67: 0.03092127496 | O67: 0.662386275 | Q67: 0.337501875 | S67: -0.337501875 | T67: 0.472502625 | U67: 0.527497375 | V67: 0.4507378762 | W67: 0.01351799941 | X67: 0.0002031938576 | Y67: 1.32775352e-06
A68: 31 | B68: 0.02108619552 | C68: 0.02952067373 | D68: -1.887885322 | E68: 3.112114678 | F68: 0.3 | G68: 6.59927775 | H68: 0.2 | I68: =I67-H68*($O$9+$O$10*(A67-$O$6)) -> 3.36881875 | J68: 3.230459 | K68: -0.018385 | L68: -1.869541 | M68: 0.0307737925 | N68: 0.02952067373 | O68: 0.659927775 | Q68: 0.336881875 | S68: -0.336881875 | T68: 0.471634625 | U68: 0.528365375 | V68: 0.4236809098 | W68: 0.01400537853 | X68: 0.0001652254977 | Y68: 1.570306643e-06
A69: 32 | B69: 0.02074279609 | C69: 0.02903991452 | D69: -1.895094909 | E69: 3.104905091 | F69: 0.35 | G69: 6.57070375 | H69: 0.4 | I69: =I68-H69*($O$9+$O$10*(A68-$O$6)) -> 3.35634275 | J69: =(G69-I69)*K$2 -> 3.214361 | K69: -0.016098 | L69: -1.885639 | M69: 0.02967180907 | N69: 0.02903991452 | O69: 0.657070375 | Q69: =I69/10 -> 0.335634275 | S69: =-Q69 -> -0.335634275 | T69: =Q69*T$36 -> 0.469887985 | U69: 0.530112015 | V69: 0.4143473359 | W69: 0.01198059596 | X69: 0.0001530972625 | Y69: 3.992907247e-07
A70: 33 | B70: 0.02001883424 | C70: 0.02802636793 | D70: -1.910625415 | E70: 3.089374585 | F70: 0.4 | G70: 6.53817175 | H70: 0.6 | I70: 3.33751475 | J70: 3.200657 | K70: -0.013704 | L70: -1.899343 | M70: 0.02875969632 | N70: =C70 -> 0.02802636793 | O70: 0.653817175 | Q70: 0.333751475 | S70: -0.333751475 | T70: 0.467252065 | U70: 0.532747935 | V70: =(E70-E$123)*(E70-E$123) -> 0.3945946154 | W70: 0.01238377592 | X70: =(N70-N$123)*(N70-N$123) -> 0.0001290428129 | Y70: =(N70-M70)*(N70-M70) -> 5.377705242e-07
A71: 34 | B71: 0.01916222147 | C71: 0.02682711006 | D71: -1.929617732 | E71: 3.070382268 | F71: 0.45 | G71: 6.50171275 | H71: 0.8 | I71: 3.31225875 | J71: 3.189454 | K71: -0.011203 | L71: -1.910546 | M71: 0.02803147478 | N71: 0.02682711006 | O71: 0.650171275 | Q71: 0.331225875 | S71: -0.331225875 | T71: 0.463716225 | U71: 0.536283775 | V71: 0.3710946051 | W71: 0.01417807731 | X71: 0.0001032346099 | Y71: 1.45049438e-06
A72: 35 | B72: 0.01884753904 | C72: 0.02638655466 | D72: -1.936772906 | E72: 3.063227094 | F72: 0.5 | G72: 6.46135775 | H72: 1 | I72: 3.28049875 | J72: 3.180859 | K72: -0.008595 | L72: -1.919141 | M72: 0.02748324595 | N72: 0.02638655466 | O72: 0.646135775 | Q72: 0.328049875 | S72: -0.328049875 | T72: 0.459269825 | U72: 0.540730175 | V72: 0.3624282907 | W72: 0.01383726519 | X72: 9.447622253e-05 | Y72: 1.202731785e-06
A73: 36 | B73: 0.0181776778 | C73: 0.02544874892 | D73: -1.95234298 | E73: 3.04765702 | F73: 0.55 | G73: 6.41713775 | H73: 1 | I73: 3.24854875 | J73: 3.168589 | K73: -0.01227 | L73: -1.931411 | M73: 0.02671612295 | N73: 0.02544874892 | O73: 0.641713775 | Q73: 0.324854875 | S73: -0.324854875 | T73: 0.454796825 | U73: 0.545203175 | V73: 0.3439237198 | W73: 0.01462454383 | X73: 7.712496868e-05 | Y73: 1.606236941e-06
A74: 37 | B74: 0.01773856648 | C74: 0.02483399307 | D74: -1.962812317 | E74: 3.037187683 | F74: 0.6 | G74: 6.36908375 | H74: 1 | I74: 3.21640875 | J74: 3.152675 | K74: -0.015914 | L74: -1.947325 | M74: 0.02574789167 | N74: 0.02483399307 | O74: 0.636908375 | Q74: 0.321640875 | S74: -0.321640875 | T74: 0.450297225 | U74: 0.549702775 | V74: 0.33175384 | W74: 0.01333732029 | X74: 6.670522054e-05 | Y74: 8.352106552e-07
A75: 38 | B75: 0.01754075754 | C75: 0.02455706055 | D75: -1.967599641 | E75: 3.032400359 | F75: 0.65 | G75: 6.31722675 | H75: 1 | I75: 3.18407875 | J75: 3.133148 | K75: -0.019527 | L75: -1.966852 | M75: 0.02460013782 | N75: 0.02455706055 | O75: 0.631722675 | Q75: 0.318407875 | S75: -0.318407875 | T75: 0.445771025 | U75: 0.554228975 | V75: 0.3262619452 | W75: 0.01015008713 | X75: 6.225831567e-05 | Y75: 1.855651275e-09
A76: 39 | B76: 0.01609435796 | C76: 0.02253210114 | D76: -2.00405469 | E76: 2.99594531 | F76: 0.7 | G76: 6.26159775 | H76: 1 | I76: 3.15155875 | J76: 3.110039 | K76: -0.023109 | L76: -1.989961 | M76: 0.02329761591 | N76: 0.02253210114 | O76: 0.626159775 | Q76: 0.315155875 | S76: -0.315155875 | T76: 0.441218225 | U76: 0.558781775 | V76: 0.2859451456 | W76: 0.01301737016 | X76: 3.440332158e-05 | Y76: 5.860128621e-07
A77: 40 | B77: 0.0154754418 | C77: 0.02166561852 | D77: -2.020503022 | E77: 2.979496978 | F77: 0.75 | G77: 6.20222775 | H77: 1 | I77: 3.11884875 | J77: 3.083379 | K77: -0.02666 | L77: -2.016621 | M77: 0.0218675399 | N77: 0.02166561852 | O77: 0.620222775 | Q77: 0.311884875 | S77: -0.311884875 | T77: 0.436638825 | U77: 0.563361175 | V77: 0.2686245848 | W77: 0.01079147441 | X77: 2.498951963e-05 | Y77: 4.077224464e-08
A78: 41 | B78: 0.01463146408 | C78: 0.02048404971 | D78: -2.043852717 | E78: 2.956147283 | F78: 0.8 | G78: 6.13914775 | H78: 1 | I78: 3.08594875 | J78: 3.053199 | K78: -0.03018 | L78: -2.046801 | M78: 0.02033881373 | N78: 0.02048404971 | O78: 0.613914775 | Q78: 0.308594875 | S78: -0.308594875 | T78: 0.432032825 | U78: 0.567967175 | V78: 0.2449659632 | W78: 0.009419035762 | X78: 1.457241332e-05 | Y78: 2.109349148e-08
A79: 42 | B79: 0.01397853066 | C79: 0.01956994292 | D79: -2.062713191 | E79: 2.937286809 | F79: 0.85 | G79: 6.07238875 | H79: 1 | I79: 3.05285875 | J79: 3.01953 | K79: -0.033669 | L79: -2.08047 | M79: 0.01874122226 | N79: 0.01956994292 | O79: 0.607238875 | Q79: 0.305285875 | S79: -0.305285875 | T79: 0.427400225 | U79: 0.572599775 | V79: 0.2266520604 | W79: 0.006763942542 | X79: 8.429013023e-06 | Y79: 6.867779339e-07
A80: 43 | B80: 0.01288891761 | C80: 0.01804448466 | D80: -2.095923594 | E80: 2.904076406 | F80: 0.9 | G80: 6.00198175 | H80: 1 | I80: 3.01957875 | J80: 2.982403 | K80: -0.037127 | L80: -2.117597 | M80: 0.01710460624 | N80: 0.01804448466 | O80: 0.600198175 | Q80: 0.301957875 | S80: -0.301957875 | T80: 0.422741025 | U80: 0.577258975 | V80: 0.1961333814 | W80: 0.006135055399 | X80: 1.898382409e-06 | Y80: 8.833714407e-07
A81: 44 | B81: 0.01169515781 | C81: 0.01637322094 | D81: -2.135178384 | E81: 2.864821616 | F81: 1 | G81: 5.92406175 | H81: 1 | I81: 2.98610875 | J81: 2.937953 | K81: -0.04445 | L81: -2.162047 | M81: 0.01530727681 | N81: 0.01637322094 | O81: 0.592406175 | Q81: 0.298610875 | S81: -0.298610875 | T81: 0.418055225 | U81: 0.581944775 | V81: 0.162904823 | W81: 0.005348199328 | X81: 8.611039621e-08 | Y81: 1.136236879e-06
A82: 45 | B82: 0.01087732838 | C82: 0.01522825973 | D82: -2.164102034 | E82: 2.835897966 | F82: 1 | G82: 5.84645175 | H82: 1 | I82: 2.95244875 | J82: 2.894003 | K82: -0.04395 | L82: -2.205997 | M82: 0.01369210488 | N82: 0.01522825973 | O82: 0.584645175 | Q82: 0.295244875 | S82: -0.295244875 | T82: 0.413342825 | U82: 0.586657175 | V82: 0.1403933802 | W82: 0.003376194964 | X82: 2.069014516e-06 | Y82: 2.359771721e-06
A83: 46 | B83: 0.00991302593 | C83: 0.0138782363 | D83: -2.20071124 | E83: 2.79928876 | F83: 1 | G83: 5.76915175 | H83: 1 | I83: 2.91859875 | J83: 2.850553 | K83: -0.04345 | L83: -2.249447 | M83: 0.01224203561 | N83: 0.0138782363 | O83: 0.576915175 | Q83: 0.291859875 | S83: -0.291859875 | T83: 0.408603825 | U83: 0.591396175 | V83: 0.1142993308 | W83: 0.002628022285 | X83: 7.7753439e-06 | Y83: 2.677152718e-06
A84: 47 | B84: 0.008939275689 | C84: 0.01251498597 | D84: -2.240939843 | E84: 2.759060157 | F84: 1 | G84: 5.69216175 | H84: 1 | I84: 2.88455875 | J84: 2.807603 | K84: -0.04295 | L84: -2.292397 | M84: 0.01094137249 | N84: 0.01251498597 | O84: 0.569216175 | Q84: 0.288455875 | S84: -0.288455875 | T84: 0.403838225 | U84: 0.596161775 | V84: 0.08871655068 | W84: 0.002356407643 | X84: 1.723645265e-05 | Y84: 2.476259361e-06
A85: 48 | B85: 0.008136120329 | C85: 0.01139056846 | D85: -2.277085223 | E85: 2.722914777 | F85: 1 | G85: 5.61548175 | H85: 1 | I85: 2.85032875 | J85: 2.765153 | K85: -0.04245 | L85: -2.334847 | M85: 0.009775707454 | N85: 0.01139056846 | O85: 0.561548175 | Q85: 0.285032875 | S85: -0.285032875 | T85: 0.399046025 | U85: 0.600953975 | V85: 0.06849100234 | W85: 0.00178406751 | X85: 2.783721229e-05 | Y85: 2.607776067e-06
A86: 49 | B86: 0.007084600343 | C86: 0.00991844048 | D86: -2.329418972 | E86: 2.670581028 | F86: 1 | G86: 5.53911175 | H86: 1 | I86: 2.81590875 | J86: 2.723203 | K86: -0.04195 | L86: -2.376797 | M86: 0.008731848041 | N86: 0.00991844048 | O86: 0.553911175 | Q86: 0.281590875 | S86: -0.281590875 | T86: 0.394227225 | U86: 0.605772775 | V86: 0.04383751711 | W86: 0.002769071954 | X86: 4.553855666e-05 | Y86: 1.408001617e-06
A87: 50 | B87: 0.006462521527 | C87: 0.009047530137 | D87: -2.363667182 | E87: 2.636332818 | F87: 1 | G87: 5.46305175 | H87: 1 | I87: 2.78129875 | J87: 2.681753 | K87: -0.04145 | L87: -2.418247 | M87: 0.007797743269 | N87: 0.009047530137 | O87: 0.546305175 | Q87: 0.278129875 | S87: -0.278129875 | T87: 0.389381825 | U87: 0.610618175 | V87: 0.03066908031 | W87: 0.002062992908 | X87: 5.805124146e-05 | Y87: 1.561967216e-06
A88: 51 | B88: 0.005687818324 | C88: 0.007962945653 | D88: -2.410609467 | E88: 2.589390533 | F88: 1 | G88: 5.38730175 | H88: 1 | I88: 2.74649875 | J88: 2.640803 | K88: -0.04095 | L88: -2.459197 | M88: 0.006962409239 | N88: 0.007962945653 | O88: 0.538730175 | Q88: 0.274649875 | S88: -0.274649875 | T88: 0.384509825 | U88: 0.615490175 | V88: 0.01643103871 | W88: 0.002643241754 | X88: 7.575475948e-05 | Y88: 1.001073116e-06
A89: 52 | B89: 0.005101996523 | C89: 0.007142795133 | D89: -2.450000787 | E89: 2.549999213 | F89: 1 | G89: 5.31186175 | H89: 1 | I89: 2.71150875 | J89: 2.600353 | K89: -0.04045 | L89: -2.499647 | M89: 0.006215855547 | N89: 0.007142795133 | O89: 0.531186175 | Q89: 0.271150875 | S89: -0.271150875 | T89: 0.379611225 | U89: 0.620388775 | V89: 0.007884071412 | W89: 0.002535503818 | X89: 9.0704129e-05 | Y89: 8.592169958e-07
A90: 53 | B90: 0.00452622161 | C90: 0.006336710255 | D90: -2.492816834 | E90: 2.507183166 | F90: 1 | G90: 5.23673175 | H90: 1 | I90: 2.67632875 | J90: 2.560403 | K90: -0.03995 | L90: -2.539597 | M90: 0.005549013287 | N90: 0.006336710255 | O90: 0.523673175 | Q90: 0.267632875 | S90: -0.267632875 | T90: 0.374686025 | U90: 0.625313975 | V90: 0.002113815252 | W90: 0.002832350686 | X90: 0.0001067079995 | Y90: 6.204665126e-07
A91: 54 | B91: 0.003985063964 | C91: 0.005579089549 | D91: -2.537705644 | E91: 2.462294356 | F91: 1 | G91: 5.16191175 | H91: 1 | I91: 2.64095875 | J91: 2.520953 | K91: -0.03945 | L91: -2.579047 | M91: 0.004953665298 | N91: 0.005579089549 | O91: 0.516191175 | Q91: 0.264095875 | S91: -0.264095875 | T91: 0.369734225 | U91: 0.630265775 | V91: 1.182517029e-06 | W91: 0.003440836539 | X91: 0.0001229343663 | Y91: 3.911554937e-07
A92: 55 | B92: 0.003644557584 | C92: 0.005102380618 | D92: -2.568812648 | E92: 2.431187352 | F92: 1 | G92: 5.08740175 | H92: 1 | I92: 2.60539875 | J92: 2.482003 | K92: -0.03895 | L92: -2.617997 | M92: 0.004422379136 | N92: 0.005102380618 | O92: 0.508740175 | Q92: 0.260539875 | S92: -0.260539875 | T92: 0.364755825 | U92: 0.635244175 | V92: 0.0009011744254 | W92: 0.002582230037 | X92: 0.0001337327118 | Y92: 4.62402016e-07
A93: 56 | B93: 0.00319974839 | C93: 0.004479647746 | D93: -2.613603454 | E93: 2.386396546 | F93: 1 | G93: 5.01320175 | H93: 1 | I93: 2.56964875 | J93: 2.443553 | K93: -0.03845 | L93: -2.656447 | M93: 0.003948443145 | N93: 0.004479647746 | O93: 0.501320175 | Q93: 0.256964875 | S93: -0.256964875 | T93: 0.359750825 | U93: 0.640249175 | V93: 0.005596592039 | W93: 0.00326686024 | X93: 0.0001485234302 | Y93: 2.821783283e-07
A94: 57 | B94: 0.002864754373 | C94: 0.004010656122 | D94: -2.651171405 | E94: 2.348828595 | F94: 1 | G94: 4.93931175 | H94: 1 | I94: 2.53370875 | J94: 2.405603 | K94: -0.03795 | L94: -2.694397 | M94: 0.003525805881 | N94: 0.004010656122 | O94: 0.493931175 | Q94: 0.253370875 | S94: -0.253370875 | T94: 0.354719225 | U94: 0.645280775 | V94: 0.01262888784 | W94: 0.003223333041 | X94: 0.0001601746029 | Y94: 2.350797567e-07
A95: 58 | B95: 0.002630841516 | C95: 0.003683178123 | D95: -2.679811803 | E95: 2.320188197 | F95: 1 | G95: =G94-F95*($M$9+(A94+$M$6)*M$10) -> 4.86573175 | H95: 1 | I95: 2.49757875 | J95: 2.368153 | K95: -0.03745 | L95: -2.731847 | M95: 0.003149019036 | N95: 0.003683178123 | O95: 0.486573175 | Q95: 0.249757875 | S95: -0.249757875 | T95: 0.349661025 | U95: 0.650338975 | V95: 0.01988628016 | W95: 0.002300622317 | X95: 0.0001685709748 | Y95: 2.853259302e-07
A96: 59 | B96: 0.002308210755 | C96: 0.003231495057 | D96: -2.723317559 | E96: 2.276682441 | F96: 1 | G96: 4.79246175 | H96: 1 | I96: 2.46125875 | J96: 2.331203 | K96: -0.03695 | L96: -2.768797 | M96: 0.002813183954 | N96: 0.003231495057 | O96: 0.479246175 | Q96: 0.246125875 | S96: -0.246125875 | T96: 0.344576225 | U96: 0.655423775 | V96: 0.03404928313 | W96: 0.002972491309 | X96: 0.0001805038362 | Y96: 1.749841787e-07
A97: 60 | B97: 0.002142897205 | C97: 0.003000056087 | D97: -2.747775255 | E97: 2.252224745 | F97: 1 | G97: 4.71950175 | H97: 1 | I97: 2.42474875 | J97: 2.294753 | K97: -0.03645 | L97: -2.805247 | M97: 0.002513901744 | N97: 0.003000056087 | O97: 0.471950175 | Q97: 0.242474875 | S97: -0.242474875 | T97: 0.339464825 | U97: 0.660535175 | V97: 0.04367354948 | W97: 0.001808652491 | X97: 0.0001867762447 | Y97: 2.36346045e-07
A98: 61 | B98: 0.001929882405 | C98: 0.002701835367 | D98: -2.781929919 | E98: 2.218070081 | F98: 1 | G98: 4.64685175 | H98: 1 | I98: 2.38804875 | J98: 2.258803 | K98: -0.03595 | L98: -2.841197 | M98: 0.002247226952 | N98: 0.002701835367 | O98: 0.464685175 | Q98: 0.238804875 | S98: -0.238804875 | T98: 0.334326825 | U98: 0.665673175 | V98: 0.05911552226 | W98: 0.001659170668 | X98: 0.0001950165132 | Y98: 2.066688112e-07
A99: 62 | B99: 0.001785868713 | C99: 0.002500216199 | D99: -2.807005912 | E99: 2.192994088 | F99: 1 | G99: 4.57451175 | H99: 1 | I99: 2.35115875 | J99: 2.223353 | K99: -0.03545 | L99: -2.876647 | M99: 0.0020096247 | N99: 0.002500216199 | O99: 0.457451175 | Q99: 0.235115875 | S99: -0.235115875 | T99: 0.329162225 | U99: 0.670837775 | V99: 0.07193812314 | W99: 0.000921663537 | X99: 0.0002006883189 | Y99: 2.406800187e-07
A100: 63 | B100: 0.001594768906 | C100: 0.002232676468 | D100: -2.843267828 | E100: 2.156732172 | F100: 1 | G100: 4.50248175 | H100: 1 | I100: 2.31407875 | J100: 2.188403 | K100: -0.03495 | L100: -2.911597 | M100: 0.001797931196 | N100: 0.002232676468 | O100: 0.450248175 | Q100: 0.231407875 | S100: -0.231407875 | T100: 0.323971025 | U100: 0.676028975 | V100: 0.09270487236 | W100: 0.001003041377 | X100: 0.0002083400731 | Y100: 1.890034514e-07
A101: 64 | B101: 0.001425524162 | C101: 0.001995733826 | D101: -2.878835269 | E101: 2.121164731 | F101: 1 | G101: 4.43076175 | H101: 1 | I101: 2.27680875 | J101: =(G101-I101)*K$2 -> 2.153953 | K101: -0.03445 | L101: -2.946047 | M101: 0.001609317447 | N101: 0.001995733826 | O101: 0.443076175 | Q101: =I101/10 -> 0.227680875 | S101: =-Q101 -> -0.227680875 | T101: =Q101*T$36 -> 0.318753225 | U101: 0.681246775 | V101: 0.1156286902 | W101: 0.001075070589 | X101: 0.0002152362704 | Y101: 1.493176186e-07
A102: 65 | B102: 0.001350441476 | C102: 0.001890618066 | D102: -2.895857871 | E102: 2.104142129 | F102: 1 | G102: 4.35935175 | H102: 1 | I102: 2.23934875 | J102: 2.120003 | K102: -0.03395 | L102: -2.979997 | M102: 0.001441256032 | N102: =C102 -> 0.001890618066 | O102: =G102/10 -> 0.435935175 | Q102: 0.223934875 | S102: -0.223934875 | T102: 0.313508825 | U102: =1-T102 -> 0.686491175 | V102: =(E102-E$123)*(E102-E$123) -> 0.1274952651 | W102: 0.0002515672418 | X102: =(N102-N$123)*(N102-N$123) -> 0.0002183316123 | Y102: =(N102-M102)*(N102-M102) -> 2.019262371e-07
A103: =A102+1 -> 66 | B103: 0.00121116545 | C103: =B103*$K$1 -> 0.00169563163 | D103: =NORMSINV(C103) -> -2.929849392 | E103: =D103+5 -> 2.070150608 | F103: 1 | G103: 4.28825175 | H103: 1 | I103: 2.20169875 | J103: 2.086553 | K103: -0.03345 | L103: =J103-5.1 -> -3.013447 | M103: =NORMSDIST(L103) -> 0.001291490768 | N103: 0.00169563163 | O103: 0.428825175 | Q103: 0.220169875 | S103: -0.220169875 | T103: 0.308237825 | U103: 0.691762175 | V103: 0.1529250392 | W103: =(E103-J103)*(E103-J103) -> 0.0002690384693 | X103: 0.0002241318901 | Y103: 1.63329836e-07
A104: 67 | B104: 0.001080623938 | C104: 0.001512873514 | D104: -2.965110016 | E104: 2.034889984 | F104: 1 | G104: 4.21746175 | H104: 1 | I104: 2.16385875 | J104: 2.053603 | K104: =J104-J103 -> -0.03295 | L104: -3.046397 | M104: 0.001158009073 | N104: 0.001512873514 | O104: 0.421746175 | Q104: 0.216385875 | S104: -0.216385875 | T104: 0.302940225 | U104: 0.697059775 | V104: 0.1817461297 | W104: 0.0003501769672 | X104: 0.0002296374469 | Y104: 1.259287717e-07
A105: 68 | B105: 0.001001500419 | C105: 0.001402100587 | D105: -2.988424125 | E105: 2.011575875 | F105: 1 | G105: 4.14698175 | H105: 1 | I105: 2.12582875 | J105: 2.021153 | K105: -0.03245 | L105: -3.078847 | M105: 0.001039016861 | N105: 0.001402100587 | O105: 0.414698175 | Q105: 0.212582875 | S105: -0.212582875 | T105: 0.297616025 | U105: 0.702383975 | V105: 0.2021680767 | W105: 9.172132822e-05 | X105: 0.0002330069776 | Y105: 1.318297921e-07
A106: 69 | B106: 0.0009334226934 | C106: 0.001306791771 | D106: -3.009871365 | E106: 1.990128635 | F106: 1 | G106: 4.07681175 | H106: 1 | I106: 2.08760875 | J106: 1.989203 | K106: -0.03195 | L106: -3.110797 | M106: 0.0009329157918 | N106: 0.001306791771 | O106: 0.407681175 | Q106: 0.208760875 | S106: -0.208760875 | T106: 0.292265225 | U106: 0.707734775 | V106: 0.2219147503 | W106: 8.568003316e-07 | X106: 0.0002359257568 | Y106: 1.397832476e-07
A107: 70 | B107: 0.0008564812527 | C107: 0.001199073754 | D107: -3.035905202 | E107: 1.964094798 | F107: 1 | G107: 4.00695175 | H107: 1 | I107: 2.04919875 | J107: 1.957753 | K107: -0.03145 | L107: -3.142247 | M107: 0.0008382826812 | N107: 0.001199073754 | O107: 0.400695175 | Q107: 0.204919875 | S107: -0.204919875 | T107: 0.286887825 | U107: 0.713112175 | V107: 0.2471204613 | W107: 4.021840666e-05 | X107: 0.0002392464305 | Y107: 1.301701981e-07
A108: 71 | B108: 0.0007251633412 | C108: 0.001015228678 | D108: -3.085740805 | E108: 1.914259195 | F108: 1 | G108: 3.93740175 | H108: 1 | I108: 2.01059875 | J108: 1.926803 | K108: -0.03095 | L108: -3.173197 | M108: 0.0007538509197 | N108: 0.001015228678 | O108: 0.393740175 | Q108: 0.201059875 | S108: -0.201059875 | T108: 0.281483825 | U108: 0.718516175 | V108: 0.2991518141 | W108: 0.0001573470528 | X108: 0.0002449675111 | Y108: 6.831833233e-08
A109: 72 | B109: 0.0007040219588 | C109: 0.0009856307424 | D109: -3.094528269 | E109: 1.905471731 | F109: 1 | G109: 3.86816175 | H109: 1 | I109: 1.97180875 | J109: 1.896353 | K109: -0.03045 | L109: -3.203647 | M109: 0.0006784937263 | N109: 0.0009856307424 | O109: 0.386816175 | Q109: 0.197180875 | S109: -0.197180875 | T109: 0.276053225 | U109: 0.723946775 | V109: 0.3088415997 | W109: 8.315126117e-05 | X109: 0.0002458948877 | Y109: 9.433314666e-08
A110: 73 | B110: 0.0006266995918 | C110: 0.0008773794286 | D110: -3.128876766 | E110: 1.871123234 | F110: 1 | G110: 3.79923175 | H110: 1 | I110: 1.93282875 | J110: 1.866403 | K110: -0.02995 | L110: -3.233597 | M110: 0.0006112090813 | N110: 0.0008773794286 | O110: 0.379923175 | Q110: 0.193282875 | S110: -0.193282875 | T110: 0.270596025 | U110: 0.729403975 | V110: 0.348198756 | W110: 2.228061127e-05 | X110: 0.0002493015915 | Y110: 7.084665378e-08
A111: 74 | B111: 0.0005994912911 | C111: 0.0008392878075 | D111: -3.14189615 | E111: 1.85810385 | F111: 1 | G111: 3.73061175 | H111: 1 | I111: 1.89365875 | J111: 1.836953 | K111: -0.02945 | L111: -3.263047 | M111: 0.0005511061941 | N111: 0.0008392878075 | O111: 0.373061175 | Q111: 0.189365875 | S111: -0.189365875 | T111: 0.265112225 | U111: 0.734887775 | V111: 0.3637333129 | W111: 0.000447358454 | X111: 0.0002505059216 | Y111: 8.304864234e-08
A112: 75 | B112: 0.0005237178557 | C112: 0.0007332049979 | D112: -3.181250052 | E112: 1.818749948 | F112: 1 | G112: 3.66230175 | H112: 1 | I112: 1.85429875 | J112: 1.808003 | K112: -0.02895 | L112: -3.291997 | M112: 0.0004973933644 | N112: 0.0007332049979 | O112: 0.366230175 | Q112: 0.185429875 | S112: -0.185429875 | T112: 0.259601825 | U112: 0.740398175 | V112: 0.4127509607 | W112: 0.0001154968902 | X112: 0.0002538752007 | Y112: 5.560712649e-08
A113: 76 | B113: 0.0004818218193 | C113: 0.000674550547 | D113: -3.205324886 | E113: 1.794675114 | F113: 1 | G113: 3.59430175 | H113: 1 | I113: 1.81474875 | J113: 1.779553 | K113: -0.02845 | L113: -3.320447 | M113: 0.0004493671094 | N113: 0.000674550547 | O113: 0.359430175 | Q113: 0.181474875 | S113: -0.181474875 | T113: 0.254064825 | U113: 0.745935175 | V113: 0.444264648 | W113: 0.0002286783367 | X113: 0.000255747778 | Y113: 5.070758055e-08
A114: 77 | B114: 0.0004331676126 | C114: 0.0006064346576 | D114: -3.235836271 | E114: 1.764163729 | F114: 1 | G114: 3.52661175 | H114: 1 | I114: 1.77500875 | J114: 1.751603 | K114: -0.02795 | L114: -3.348397 | M114: 0.0004064024361 | N114: 0.0006064346576 | O114: 0.352661175 | Q114: 0.177500875 | S114: -0.177500875 | T114: 0.248501225 | U114: 0.751498775 | V114: 0.48586921 | W114: 0.0001577719112 | X114: 0.0002579310522 | Y114: 4.001288964e-08
A115: 78 | B115: 0.0003714829117 | C115: 0.0005200760764 | D115: -3.279434873 | E115: 1.720565127 | F115: 1 | G115: 3.45923175 | H115: 1 | I115: 1.73507875 | J115: 1.724153 | K115: -0.02745 | L115: -3.375847 | M115: 0.0003679441488 | N115: 0.0005200760764 | O115: 0.345923175 | Q115: 0.173507875 | S115: -0.173507875 | T115: 0.242911025 | U115: 0.757088975 | V115: 0.5485502651 | W115: 1.287283203e-05 | X115: 0.0002607123877 | Y115: 2.314412341e-08
A116: 79 | B116: 0.0003564616166 | C116: 0.0004990462632 | D116: -3.29106386 | E116: 1.70893614 | F116: 1 | G116: 3.39216175 | H116: 1 | I116: 1.69495875 | J116: 1.697203 | K116: -0.02695 | L116: -3.402797 | M116: 0.0003334990891 | N116: 0.0004990462632 | O116: 0.339216175 | Q116: 0.169495875 | S116: -0.169495875 | T116: 0.237294225 | U116: 0.762705775 | V116: 0.5659113264 | W116: 0.0001376665703 | X116: 0.0002613919495 | Y116: 2.740586685e-08
A117: 80 | B117: 0.0003426666759 | C117: 0.0004797333463 | D117: -3.302150224 | E117: 1.697849776 | F117: 1 | G117: 3.32540175 | H117: 1 | I117: 1.65464875 | J117: 1.670753 | K117: -0.02645 | L117: -3.429247 | M117: 0.000302629216 | N117: 0.0004797333463 | O117: 0.332540175 | Q117: 0.165464875 | S117: -0.165464875 | T117: 0.231650825 | U117: 0.768349175 | V117: 0.5827141289 | W117: 0.0007342352751 | X117: 0.0002620168103 | Y117: 3.136587297e-08
A118: 81 | B118: 0.0003333417983 | C118: 0.0004666785176 | D118: -3.30988082 | E118: 1.69011918 | F118: 1 | G118: 3.25895175 | H118: 1 | I118: 1.61414875 | J118: 1.644803 | K118: -0.02595 | L118: -3.455197 | M118: 0.0002749454388 | N118: 0.0004666785176 | O118: 0.325895175 | Q118: 0.161414875 | S118: -0.161414875 | T118: 0.225980825 | U118: 0.774019175 | V118: 0.5945763019 | W118: 0.002053556206 | X118: 0.000262439616 | Y118: 3.67615735e-08
A119: 82 | B119: 0.0002850975102 | C119: 0.0003991365142 | D119: -3.353392893 | E119: 1.646607107 | F119: 1 | G119: 3.19281175 | H119: 1 | I119: 1.57345875 | J119: 1.619353 | K119: -0.02545 | L119: -3.480647 | M119: 0.0002501021278 | N119: 0.0003991365142 | O119: 0.319281175 | Q119: 0.157345875 | S119: -0.157345875 | T119: 0.220284225 | U119: 0.779715775 | V119: 0.6635728558 | W119: 0.0007427863222 | X119: 0.0002646325373 | Y119: 2.221124833e-08
A120: 83 | B120: 0.0002641391702 | C120: 0.0003697948382 | D120: -3.374466312 | E120: 1.625533688 | F120: 1 | G120: 3.12698175 | H120: 1 | I120: 1.53257875 | J120: 1.594403 | K120: -0.02495 | L120: -3.505597 | M120: 0.0002277922298 | N120: 0.0003697948382 | O120: 0.312698175 | Q120: 0.153257875 | S120: -0.153257875 | T120: 0.214561025 | U120: 0.785438975 | V120: 0.6983497504 | W120: 0.0009691197328 | X120: 0.0002655880314 | Y120: 2.01647408e-08
A121: 84 | B121: 0.0002679830946 | C121: 0.0003751763324 | D121: -3.37048766 | E121: 1.62951234 | F121: 1 | G121: 3.06146175 | H121: 1 | I121: 1.49150875 | J121: 1.569953 | K121: -0.02445 | L121: -3.530047 | M121: 0.0002077429254 | N121: 0.0003751763324 | O121: 0.306146175 | Q121: 0.149150875 | S121: -0.149150875 | T121: 0.208811225 | U121: 0.791188775 | V121: 0.6917158747 | W121: 0.003547314938 | X121: 0.0002654126573 | Y121: 2.803394579e-08
E122: Mean | J122: Mean | M122: Mean | N122: Mean | V122: Sum | W122: Sum | X122: Sum | Y122: Sum
E123: =AVERAGE(E38:E121) -> 2.46120692 | J123: =AVERAGE(J38:J121) -> 2.516184015 | M123: =AVERAGE(M38:M121) -> 0.01625545248 | N123: 0.01666666667 | V123: =SUM(V38:V121) -> 45.5079748 | W123: =SUM(W38:W121) -> 0.4479419689 | X123: =SUM(X38:X121) -> 0.03474913049 | Y123: =SUM(Y38:Y121) -> 0.0001725521056
